bitfinex/quotes_BTCUSD_20220212
["timestamp","ask_amount","ask_price","bid_price","bid_amount"]
[1644658306202,0.07468029,42411.0,42407.0,0.005]
[1644658306403,0.00050594,42411.0,42407.0,0.005]
[1644658307007,0.21089958,42415.0,42407.0,0.005]
[1644658307404,0.00050594,42411.0,42407.0,0.005]
[1644658308406,0.06708082,42412.0,42407.0,0.005]
[1644658308606,0.00049204,42411.0,42407.0,0.005]
[1644658309510,0.06708082,42412.0,42407.0,0.005]
[1644658309709,0.00049204,42411.0,42404.0,0.1]
[1644658309955,0.00049204,42411.0,42404.0,0.0501]
[1644658310155,0.00049204,42411.0,42408.0,0.00181382]
[1644658310758,0.06708082,42412.0,42408.0,0.00181382]
[1644658310957,0.06757286,42412.0,42408.0,0.00181382]
[1644658311760,0.06257286,42412.0,42408.0,0.00181382]
[1644658311958,0.06208082,42412.0,42408.0,0.00181382]
[1644658312163,0.06257428,42412.0,42408.0,0.00181382]
[1644658313057,0.06208082,42412.0,42408.0,0.00181382]
[1644658313259,0.06257428,42412.0,42408.0,0.00181382]
[1644658313458,0.30367516,42412.0,42408.0,0.00181382]
[1644658313907,0.0473,42411.0,42408.0,0.00181382]
[1644658315502,0.0473,42411.0,42400.0,0.0001]
[1644658315707,0.25600743,42408.0,42400.0,0.0001]
[1644658316004,0.08754262,42401.0,42399.0,0.0024586]
[1644658316707,0.08754262,42401.0,42399.0,0.00186558]
[1644658318358,0.00032749,42398.0,42397.0,0.0001]
[1644658319658,0.00032749,42398.0,42396.0,0.19975017]
[1644658320860,0.00032749,42398.0,42397.0,0.19975017]
[1644658321607,0.00032749,42398.0,42397.0,0.19987358]
[1644658323307,0.00032749,42398.0,42397.0,0.14987358]
[1644658325356,0.00148758,42398.0,42397.0,0.14987358]
[1644658325557,0.00148758,42398.0,42395.0,0.00553156]
[1644658326258,0.00148758,42398.0,42395.0,0.005]
[1644658333355,0.00148758,42398.0,42395.0,0.20484136]
[1644658334557,0.00148758,42398.0,42395.0,0.005]
[1644658334757,0.00148758,42398.0,42395.0,0.20484136]
[1644658335857,0.00148758,42398.0,42395.0,0.20451468]
[1644658336706,0.00148758,42398.0,42395.0,0.19451468]
[1644658336906,0.00148758,42398.0,42394.0,0.19504624]
[1644658337107,0.00148758,42398.0,42394.0,0.19451468]
[1644658337309,0.00148758,42398.0,42394.0,0.19504624]
[1644658338410,0.00148758,42398.0,42394.0,0.19451468]
[1644658338611,0.00148758,42398.0,42394.0,0.19504625]
[1644658339611,0.00148758,42398.0,42394.0,0.19451468]
[1644658339854,0.00148758,42398.0,42394.0,0.19504625]
[1644658340654,0.00148758,42398.0,42394.0,0.19451468]
[1644658340853,0.00148758,42398.0,42394.0,0.19504625]
[1644658341855,0.00148758,42398.0,42394.0,0.19451468]
[1644658342056,0.00148758,42398.0,42394.0,0.19504625]
[1644658343060,0.00148758,42398.0,42394.0,0.19451468]
[1644658343257,0.00148758,42398.0,42394.0,0.19504625]
[1644658343458,0.00148758,42398.0,42394.0,0.00053157]
[1644658344310,0.00148758,42398.0,42393.0,0.24991512]
[1644658344610,0.00148758,42398.0,42394.0,0.00053157]
[1644658345614,0.00148758,42398.0,42393.0,0.24991512]
[1644658345813,0.00148758,42398.0,42394.0,0.00053157]
[1644658346812,0.00148758,42398.0,42396.0,0.19990065]
[1644658348158,0.00148758,42398.0,42397.0,0.19990065]
[1644658349856,0.19148758,42401.0,42397.0,0.19990065]
[1644658351509,0.19148758,42401.0,42395.0,0.24968771]
[1644658351708,0.19148758,42401.0,42397.0,0.19995139]
[1644658351907,0.19148758,42401.0,42398.0,0.19995139]
[1644658353608,0.19148758,42401.0,42396.0,0.25021928]
[1644658353807,0.19148758,42401.0,42398.0,0.19998061]
[1644658354008,0.19148758,42401.0,42396.0,0.24968771]
[1644658354208,0.19148758,42401.0,42399.0,0.19997925]
[1644658354408,0.19148758,42401.0,42396.0,0.25021927]
[1644658354610,0.19148758,42401.0,42398.0,0.19997962]
[1644658354856,0.19148758,42401.0,42396.0,0.25021927]
[1644658355056,0.19148758,42401.0,42399.0,0.19997892]
[1644658355257,0.19148758,42401.0,42398.0,0.1999793]
[1644658355458,0.19148758,42401.0,42397.0,0.24968771]
[1644658356258,0.19148758,42401.0,42399.0,0.20001146]
[1644658356459,0.19148758,42401.0,42397.0,0.24968771]
[1644658356658,0.19148758,42401.0,42399.0,0.20001142]
[1644658356858,0.19148758,42401.0,42397.0,0.24968771]
[1644658357659,0.19148758,42401.0,42400.0,0.20003358]
[1644658357860,0.19148758,42401.0,42398.0,0.24968771]
[1644658358061,0.19148758,42401.0,42400.0,0.20003315]
[1644658358362,0.19148758,42401.0,42400.0,0.20003233]
[1644658358613,0.19148758,42401.0,42398.0,0.24968771]
[1644658358805,0.19148758,42401.0,42400.0,0.20003366]
[1644658359006,0.19148758,42401.0,42400.0,0.20003375]
[1644658359206,0.19148758,42401.0,42398.0,0.24968771]
[1644658361805,0.19148758,42401.0,42398.0,0.51751718]
[1644658362456,0.19148758,42401.0,42398.0,0.24968771]
[1644658362657,0.19148758,42401.0,42396.0,0.25021928]
[1644658362855,0.19148758,42401.0,42398.0,0.20008136]
[1644658363057,0.19148758,42401.0,42398.0,0.20007114]
[1644658363255,0.19148758,42401.0,42399.0,0.20006647]
[1644658363456,0.19148758,42401.0,42396.0,0.25021928]
[1644658363660,0.19148758,42401.0,42399.0,0.20006996]
[1644658363858,0.19148758,42401.0,42398.0,0.2000715]
[1644658364058,0.19148758,42401.0,42398.0,0.20008121]
[1644658364256,0.19148758,42401.0,42398.0,0.20008289]
[1644658364456,0.19148758,42401.0,42398.0,0.20008448]
[1644658364658,0.19148758,42401.0,42398.0,0.20008456]
[1644658364859,0.19148758,42401.0,42396.0,0.24968771]
[1644658365057,0.19148758,42401.0,42396.0,0.25021928]
[1644658365457,0.19148758,42401.0,42399.0,0.20006744]
[1644658365657,0.19148758,42401.0,42397.0,0.24968771]
[1644658365857,0.19148758,42401.0,42399.0,0.20006532]
[1644658366113,0.19148758,42401.0,42397.0,0.24968771]
[1644658366309,0.19148758,42401.0,42399.0,0.20006604]
[1644658366606,0.19148758,42401.0,42396.0,0.00053157]
[1644658367008,0.19148758,42401.0,42398.0,0.20007865]
[1644658367208,0.19148758,42401.0,42398.0,0.20007835]
[1644658367408,0.19148758,42401.0,42396.0,0.25021927]
[1644658367807,0.19148758,42401.0,42398.0,0.20006662]
[1644658368008,0.19148758,42401.0,42396.0,0.25021927]
[1644658368207,0.19148758,42401.0,42398.0,0.20006849]
[1644658368508,0.19148758,42401.0,42396.0,0.25021927]
[1644658368709,0.19148758,42401.0,42400.0,0.20004291]
[1644658368913,0.19148758,42401.0,42400.0,0.20004426]
[1644658369110,0.19148758,42401.0,42399.0,0.20005674]
[1644658369311,0.19148758,42401.0,42396.0,0.25021927]
[1644658369511,0.19148758,42401.0,42399.0,0.20006028]
[1644658369712,0.19148758,42401.0,42396.0,0.25021928]
[1644658369961,0.19148758,42401.0,42397.0,0.24968771]
[1644658370364,0.19148758,42401.0,42399.0,0.20005321]
[1644658370565,0.19148758,42401.0,42397.0,0.24968771]
[1644658370766,0.19148758,42401.0,42399.0,0.20005103]
[1644658370964,0.19148758,42401.0,42397.0,0.24968771]
[1644658371163,0.19148758,42401.0,42399.0,0.20005382]
[1644658371365,0.19148758,42401.0,42396.0,0.25021928]
[1644658371568,0.19148758,42401.0,42399.0,0.20004742]
[1644658371766,0.19148758,42401.0,42397.0,0.24968771]
[1644658372171,0.19148758,42401.0,42399.0,0.20005283]
[1644658372367,0.19148758,42401.0,42397.0,0.24968771]
[1644658372568,0.19148758,42401.0,42399.0,0.20004967]
[1644658372766,0.19148758,42401.0,42399.0,0.20005322]
[1644658372965,0.19148758,42401.0,42397.0,0.24968771]
[1644658373608,0.19148758,42401.0,42399.0,0.20005529]
[1644658373809,0.19148758,42401.0,42398.0,0.20007275]
[1644658374014,0.19148758,42401.0,42396.0,0.25021928]
[1644658374213,0.19148758,42401.0,42398.0,0.20008042]
[1644658374408,0.19148758,42401.0,42396.0,0.24968771]
[1644658374609,0.19148758,42401.0,42398.0,0.20008115]
[1644658374812,0.19148758,42401.0,42396.0,0.00053156]
[1644658375213,0.19148758,42401.0,42397.0,0.20009172]
[1644658375416,0.75,42400.0,42396.0,0.20010513]
[1644658375616,0.75,42400.0,42390.0,0.25013142]
[1644658375617,0.53514013,42392.0,42390.0,0.25013142]
[1644658375816,0.0473,42391.0,42383.0,0.05]
[1644658376013,0.0473,42391.0,42381.0,0.01]
[1644658376413,0.07903962,42387.0,42381.0,0.01]
[1644658376615,0.0473,42386.0,42381.0,0.01]
[1644658377018,0.0473,42386.0,42382.0,0.00022883]
[1644658378064,0.0473,42386.0,42381.0,0.01]
[1644658378262,0.0473,42386.0,42382.0,0.00022871]
[1644658379163,0.0473,42386.0,42381.0,0.01]
[1644658379467,0.0473,42386.0,42382.0,0.00022871]
[1644658380463,0.0473,42386.0,42381.0,0.01]
[1644658380663,0.0473,42386.0,42382.0,0.00022871]
[1644658381514,0.0473,42386.0,42381.0,0.0101]
[1644658381714,0.0473,42386.0,42382.0,0.00053191]
[1644658382814,0.0473,42386.0,42381.0,0.01]
[1644658383015,0.0473,42386.0,42382.0,0.00053191]
[1644658383915,0.0473,42386.0,42381.0,0.01]
[1644658384115,0.0473,42386.0,42382.0,0.00053191]
[1644658385260,0.0473,42386.0,42381.0,0.01]
[1644658385459,0.2873,42386.0,42382.0,0.00053191]
[1644658386461,0.2873,42386.0,42381.0,0.01]
[1644658386661,0.2873,42386.0,42382.0,0.00053191]
[1644658387566,0.2873,42386.0,42381.0,0.01]
[1644658387763,0.2873,42386.0,42382.0,0.00053191]
[1644658387965,0.24,42386.0,42382.0,0.00053191]
[1644658388832,0.24,42386.0,42381.0,0.01]
[1644658389032,0.24,42386.0,42382.0,0.00053191]
[1644658389936,0.24,42386.0,42381.0,0.01]
[1644658390133,0.24,42386.0,42382.0,0.00053191]
[1644658390935,0.24,42386.0,42382.0,0.00076584]
[1644658391133,0.24,42386.0,42382.0,0.00023393]
[1644658391334,0.24,42386.0,42382.0,0.00053191]
[1644658391535,0.24,42386.0,42382.0,0.00076584]
[1644658392360,0.24,42386.0,42382.0,0.00023393]
[1644658392564,0.24,42386.0,42382.0,0.00053191]
[1644658392761,0.24,42386.0,42382.0,0.00076584]
[1644658393565,0.24,42386.0,42382.0,0.00023393]
[1644658393763,0.24,42386.0,42382.0,0.00053191]
[1644658393962,0.24,42386.0,42382.0,0.00076584]
[1644658394766,0.24,42386.0,42382.0,0.00023393]
[1644658394965,0.24,42386.0,42382.0,0.00053191]
[1644658395168,0.24,42386.0,42382.0,0.00076584]
[1644658395965,0.24,42386.0,42382.0,0.00023393]
[1644658396212,0.24,42386.0,42382.0,0.00053191]
[1644658396412,0.24,42386.0,42382.0,0.00076584]
[1644658397113,0.24,42386.0,42382.0,0.00023393]
[1644658397312,0.21600001,42386.0,42382.0,0.00053191]
[1644658397515,0.21600001,42386.0,42382.0,0.00076584]
[1644658398318,0.21600001,42386.0,42382.0,0.00023393]
[1644658398519,0.21600001,42386.0,42382.0,0.00053191]
[1644658398718,0.21600001,42386.0,42382.0,0.00076584]
[1644658399118,0.21600001,42386.0,42384.0,0.19395014]
[1644658399318,0.21600001,42386.0,42385.0,0.0001]
[1644658403911,0.21600001,42386.0,42384.0,0.00023393]
[1644658404113,0.21600001,42386.0,42383.0,0.0005319]
[1644658405515,0.21600001,42386.0,42382.0,0.00023393]
[1644658405712,0.21600001,42386.0,42382.0,0.0005319]
[1644658405915,0.21568573,42386.0,42382.0,0.00076583]
[1644658406714,0.21568573,42386.0,42382.0,0.00033393]
[1644658406914,0.21568573,42386.0,42382.0,0.00086584]
[1644658407961,0.21568573,42386.0,42382.0,0.00033393]
[1644658408165,0.21568573,42386.0,42382.0,0.00086584]
[1644658409166,0.21568573,42386.0,42382.0,0.00033393]
[1644658409463,0.21568573,42386.0,42382.0,0.00086584]
[1644658410463,0.21568573,42386.0,42382.0,0.00033393]
[1644658410667,0.21568573,42386.0,42382.0,0.00086584]
[1644658411613,0.21568573,42386.0,42382.0,0.00033393]
[1644658411811,0.21568573,42386.0,42382.0,0.00086584]
[1644658412613,0.21568573,42386.0,42382.0,0.00076584]
[1644658412815,0.21568573,42386.0,42382.0,0.00023393]
[1644658413015,0.21568573,42386.0,42382.0,0.00053191]
[1644658413218,0.21568573,42386.0,42382.0,0.00076584]
[1644658413814,0.21568573,42386.0,42382.0,0.00086584]
[1644658414015,0.21568573,42386.0,42382.0,0.00033393]
[1644658414219,0.21568573,42386.0,42382.0,0.00086584]
[1644658414616,0.21568573,42386.0,42382.0,0.00076584]
[1644658415268,0.21568573,42386.0,42382.0,0.00023393]
[1644658415575,0.21568573,42386.0,42382.0,0.00053191]
[1644658415870,0.21568573,42386.0,42382.0,0.00076584]
[1644658416467,0.21568573,42386.0,42382.0,0.00023393]
[1644658416671,0.21568573,42386.0,42382.0,0.00053191]
[1644658416870,0.21568573,42386.0,42382.0,0.00076584]
[1644658417471,0.21568573,42386.0,42382.0,0.00086584]
[1644658417670,0.21568573,42386.0,42382.0,0.00033393]
[1644658417870,0.21568573,42386.0,42382.0,0.00086584]
[1644658418817,0.21568573,42386.0,42383.0,0.30005371]
[1644658419116,0.21568573,42386.0,42384.0,0.0001]
[1644658426516,0.21568573,42386.0,42384.0,0.30015371]
[1644658426517,0.19411716,42386.0,42384.0,0.30015371]
[1644658426714,0.19411716,42386.0,42385.0,0.0001]
[1644658426915,0.19411716,42386.0,42385.0,0.30015371]
[1644658428818,0.19411716,42386.0,42385.0,0.0001]
[1644658429019,6.142e-05,42384.0,42383.0,0.0006319]
[1644658429619,6.142e-05,42384.0,42383.0,0.0001]
[1644658435317,0.19411716,42386.0,42383.0,0.0001]
[1644658435318,0.13064558,42386.0,42383.0,0.0001]
[1644658435517,0.13064558,42386.0,42383.0,0.00033393]
[1644658435717,0.13064558,42386.0,42383.0,0.0001]
[1644658435919,0.13064558,42386.0,42383.0,0.00033393]
[1644658436117,0.13064558,42386.0,42383.0,0.0001]
[1644658436321,0.13064558,42386.0,42383.0,0.00033393]
[1644658436518,0.13064558,42386.0,42383.0,0.0001]
[1644658436718,0.13064558,42386.0,42383.0,0.00033393]
[1644658436919,0.13064558,42386.0,42383.0,0.0001]
[1644658437119,0.13064558,42386.0,42383.0,0.00033393]
[1644658437370,0.13064558,42386.0,42383.0,0.0001]
[1644658437572,0.13064558,42386.0,42383.0,0.00033393]
[1644658437770,0.13064558,42386.0,42383.0,0.0001]
[1644658437972,0.13064558,42386.0,42383.0,0.00033393]
[1644658438173,0.13064558,42386.0,42383.0,0.0001]
[1644658438372,0.003894,42385.0,42383.0,0.00033393]
[1644658438673,0.003894,42385.0,42383.0,0.0001]
[1644658443819,0.003894,42385.0,42382.0,0.00086632]
[1644658444021,0.003894,42385.0,42382.0,0.00033393]
[1644658444219,0.003894,42385.0,42382.0,0.00086632]
[1644658444418,0.003894,42385.0,42382.0,0.00076632]
[1644658445365,0.003894,42385.0,42382.0,0.00023393]
[1644658445565,0.003894,42385.0,42381.0,0.0105324]
[1644658446464,0.003894,42385.0,42381.0,0.01]
[1644658446670,0.25647476,42385.0,42381.0,0.0105324]
[1644658446868,0.58106774,42384.0,42381.0,0.0105324]
[1644658447067,0.330537,42382.0,42381.0,0.0105324]
[1644658447265,0.377837,42382.0,42381.0,0.0105324]
[1644658447468,0.45959871,42382.0,42381.0,0.0105324]
[1644658447667,0.45959871,42382.0,42381.0,0.01]
[1644658448919,0.75,42381.0,42375.0,0.00023393]
[1644658449117,0.75,42381.0,42379.0,0.00053195]
[1644658449118,0.57836774,42380.0,42379.0,0.00053195]
[1644658449321,1.20672716,42380.0,42379.0,0.00053195]
[1644658449715,1.25672716,42380.0,42379.0,0.00053195]
[1644658449919,1.30898583,42380.0,42379.0,0.00053195]
[1644658450115,1.30898583,42380.0,42373.0,0.00023393]
[1644658450316,1.30898583,42380.0,42372.0,0.0301]
[1644658450317,0.41784668,42374.0,42372.0,0.03023393]
[1644658450516,0.0473,42373.0,42372.0,0.03]
[1644658450718,0.377837,42373.0,42372.0,0.03]
[1644658451020,0.377837,42373.0,42357.0,0.30079523]
[1644658451021,0.330537,42371.0,42357.0,0.30079523]
[1644658451220,0.05,42365.0,42356.0,0.30079523]
[1644658451416,0.377837,42364.0,42356.0,0.30079523]
[1644658451617,0.0473,42363.0,42356.0,0.30079523]
[1644658451822,0.19027379,42360.0,42352.0,0.30079523]
[1644658452116,0.08974308,42353.0,42352.0,0.30079523]
[1644658452367,0.08974308,42353.0,42351.0,0.31079523]
[1644658452770,0.08974308,42353.0,42351.0,0.01]
[1644658453976,0.330537,42352.0,42351.0,0.01]
[1644658454375,0.08974308,42353.0,42351.0,0.01]
[1644658454970,0.330537,42352.0,42351.0,0.01]
[1644658455175,0.08974308,42353.0,42351.0,0.01]
[1644658457114,0.330537,42352.0,42351.0,0.01]
[1644658457315,0.08974308,42353.0,42351.0,0.01]
[1644658457514,0.330537,42352.0,42351.0,0.01]
[1644658457717,0.08974308,42353.0,42351.0,0.01]
[1644658458115,0.330537,42352.0,42351.0,0.01]
[1644658458319,0.08974308,42353.0,42351.0,0.01]
[1644658458517,0.330537,42352.0,42351.0,0.01]
[1644658458817,0.08974308,42353.0,42351.0,0.01]
[1644658459018,0.08974308,42353.0,42342.0,0.0301]
[1644658459019,0.01037218,42350.0,42342.0,0.0301]
[1644658459219,0.01037218,42350.0,42342.0,0.03]
[1644658459425,0.330537,42349.0,42342.0,0.03]
[1644658459861,0.01037218,42350.0,42344.0,0.00052945]
[1644658460863,0.01037218,42350.0,42342.0,0.03]
[1644658461063,0.01037218,42350.0,42345.0,0.00052945]
[1644658461262,0.07435012,42346.0,42345.0,0.00052945]
[1644658461465,0.39837119,42346.0,42345.0,0.00052945]
[1644658461664,0.07435012,42346.0,42345.0,0.00052945]
[1644658462068,0.07435012,42346.0,42342.0,0.03]
[1644658462364,0.30186238,42345.0,42343.0,0.00052946]
[1644658462565,0.19256434,42347.0,42344.0,0.158423]
[1644658462867,0.01037218,42350.0,42345.0,0.0001]
[1644658463066,0.01037218,42350.0,42349.0,0.40551244]
[1644658463265,0.01037218,42350.0,42349.0,0.0001]
[1644658463467,0.01037218,42350.0,42346.0,0.0473]
[1644658463714,0.01037218,42350.0,42345.0,0.00022554]
[1644658464514,0.01037218,42350.0,42345.0,0.0001]
[1644658464515,0.0473,42349.0,42345.0,0.0001]
[1644658464719,0.0473,42349.0,42345.0,0.0006294]
[1644658465816,0.0473,42349.0,42345.0,0.00033326]
[1644658466014,0.01037218,42350.0,42345.0,0.00086266]
[1644658466413,0.01037218,42350.0,42345.0,0.0005294]
[1644658466614,0.01037218,42350.0,42345.0,0.00086266]
[1644658466814,0.01037218,42350.0,42345.0,0.0005294]
[1644658467014,0.01037218,42350.0,42345.0,0.0001]
[1644658467213,0.01037218,42350.0,42346.0,0.22555702]
[1644658467469,0.01037218,42350.0,42347.0,0.158509]
[1644658467667,0.01037218,42350.0,42348.0,0.0001]
[1644658468069,0.01037218,42350.0,42348.0,0.158504]
[1644658468267,0.01037218,42350.0,42349.0,0.0001]
[1644658468868,0.01037218,42350.0,42348.0,0.15863726]
[1644658469068,0.01037218,42350.0,42349.0,0.0001]
[1644658469268,0.01037218,42350.0,42344.0,0.15842]
[1644658469469,0.01037218,42350.0,42347.0,0.00052939]
[1644658470570,0.01037218,42350.0,42345.0,0.00033326]
[1644658470771,0.01037218,42350.0,42346.0,0.15894339]
[1644658470970,0.01037218,42350.0,42347.0,0.0001]
[1644658471218,0.01037218,42350.0,42347.0,0.00033326]
[1644658471418,0.01037218,42350.0,42347.0,0.158409]
[1644658471620,0.01037218,42350.0,42348.0,0.0001]
[1644658471817,0.01037218,42350.0,42347.0,0.00023326]
[1644658472017,0.01037218,42350.0,42347.0,0.0001]
[1644658472216,0.01037218,42350.0,42347.0,0.00023326]
[1644658472418,0.01037218,42350.0,42346.0,0.00076265]
[1644658472616,0.01037218,42350.0,42346.0,0.00052939]
[1644658473018,0.01037218,42350.0,42345.0,0.00033326]
[1644658473220,0.01037218,42350.0,42346.0,0.0005294]
[1644658474219,0.01037218,42350.0,42344.0,0.0001]
[1644658474420,0.01037218,42350.0,42346.0,0.0005294]
[1644658474879,0.08037218,42350.0,42346.0,0.0005294]
[1644658475279,0.08037218,42350.0,42344.0,0.00033326]
[1644658475482,0.08037218,42350.0,42346.0,0.0005294]
[1644658475880,0.08037218,42350.0,42346.0,0.0006294]
[1644658476080,0.08037218,42350.0,42346.0,0.0005294]
[1644658476580,0.08037218,42350.0,42345.0,0.00033326]
[1644658476783,0.08037218,42350.0,42346.0,0.0005294]
[1644658476984,0.08037218,42350.0,42347.0,0.158409]
[1644658477186,0.08037218,42350.0,42348.0,0.0974]
[1644658477384,0.08037218,42350.0,42349.0,0.2058]
[1644658477782,0.08037218,42350.0,42349.0,0.42907836]
[1644658478389,1.1072,42377.0,42350.0,0.75]
[1644658478631,0.6725,42376.0,42356.0,0.05]
[1644658478818,0.6725,42376.0,42357.0,0.53539094]
[1644658479017,0.6725,42376.0,42358.0,0.0001]
[1644658479218,0.23652912,42372.0,42364.0,0.26866699]
[1644658479517,0.06642363,42371.0,42365.0,0.205714]
[1644658479718,0.06642363,42371.0,42367.0,0.158305]
[1644658479918,0.06642363,42371.0,42368.0,0.0001]
[1644658480118,0.06642363,42371.0,42369.0,0.158296]
[1644658480419,0.06642363,42371.0,42369.0,0.0001]
[1644658481817,0.06642363,42371.0,42369.0,0.158395]
[1644658482662,0.06642363,42371.0,42368.0,0.00059347]
[1644658482863,0.06642363,42371.0,42368.0,0.00049347]
[1644658483063,0.06642363,42371.0,42369.0,0.158295]
[1644658483267,0.06642363,42371.0,42369.0,0.158395]
[1644658483464,0.124,42376.0,42369.0,0.158395]
[1644658483669,0.124,42376.0,42370.0,0.0473]
[1644658483864,0.386,42377.0,42371.0,0.45528723]
[1644658484063,0.386,42377.0,42372.0,0.0473]
[1644658484265,0.5544,42380.0,42372.0,0.26441871]
[1644658484465,0.26316564,42379.0,42372.0,0.26441871]
[1644658484665,0.07185379,42374.0,42372.0,0.26441871]
[1644658485065,0.07185379,42374.0,42373.0,0.00045493]
[1644658485269,0.07185379,42374.0,42373.0,0.04775493]
[1644658485466,0.26316564,42379.0,42373.0,0.04775493]
[1644658486220,0.26316564,42379.0,42373.0,0.0473]
[1644658486425,0.26316564,42379.0,42374.0,0.00045727]
[1644658486618,0.06553479,42376.0,42374.0,0.00045727]
[1644658486817,0.06553479,42376.0,42373.0,0.04275727]
[1644658488518,0.06553479,42376.0,42374.0,0.15827]
[1644658488717,0.06553479,42376.0,42375.0,0.0001]
[1644658488918,0.06553479,42376.0,42373.0,0.04275727]
[1644658489118,0.26442616,42368.0,42367.0,0.22356534]
[1644658489322,0.26442616,42368.0,42367.0,0.69506688]
[1644658489519,0.26442616,42368.0,42367.0,0.74236688]
[1644658490178,0.26442616,42368.0,42367.0,0.42917134]
[1644658491178,0.26442616,42368.0,42367.0,0.205606]
[1644658492577,0.26442616,42368.0,42365.0,0.20616592]
[1644658492778,0.26442616,42368.0,42366.0,0.158312]
[1644658494222,0.26442616,42368.0,42367.0,0.0001]
[1644658495727,0.26442616,42368.0,42367.0,0.19344561]
[1644658495926,0.26442616,42368.0,42367.0,0.64267987]
[1644658498273,0.26442616,42368.0,42367.0,0.73997987]
[1644658499670,0.26442616,42368.0,42367.0,0.83997987]
[1644658499878,0.26442616,42368.0,42367.0,0.93997987]
[1644658501931,0.26442616,42368.0,42367.0,0.64905161]
[1644658502134,0.26442616,42368.0,42367.0,0.59905161]
[1644658502335,0.26442616,42368.0,42367.0,0.44905161]
[1644658504537,0.26442616,42368.0,42367.0,0.40175161]
[1644658505978,0.50442616,42368.0,42367.0,0.40175161]
[1644658507477,0.50442616,42368.0,42367.0,0.35175161]
[1644658507681,0.50442616,42368.0,42367.0,0.0001]
[1644658507880,0.50442616,42368.0,42366.0,0.15831]
[1644658508077,0.50442616,42368.0,42367.0,0.0001]
[1644658508478,0.57188918,42368.0,42367.0,0.0001]
[1644658509720,0.57123087,42368.0,42367.0,0.0001]
[1644658510620,0.76486345,42368.0,42367.0,0.0001]
[1644658511023,0.76486345,42368.0,42365.0,0.00049248]
[1644658511425,0.76486345,42368.0,42362.0,0.0001]
[1644658511628,0.76486345,42368.0,42364.0,0.00049249]
[1644658512504,0.76486345,42368.0,42361.0,0.0001]
[1644658512505,0.21491672,42366.0,42361.0,0.0001]
[1644658512708,0.21491672,42366.0,42364.0,0.00049249]
[1644658513310,0.330562,42365.0,42364.0,0.00049249]
[1644658513507,0.23757543,42365.0,42364.0,0.00049249]
[1644658513705,0.23757543,42365.0,42357.0,0.00023326]
[1644658513906,0.23757543,42365.0,42362.0,0.00049194]
[1644658514109,0.21491672,42366.0,42362.0,0.00049194]
[1644658514915,0.21491672,42366.0,42357.0,0.00023326]
[1644658515110,0.21491672,42366.0,42352.0,0.00033326]
[1644658515411,0.21491672,42366.0,42356.0,0.00196805]
[1644658516224,0.08506617,42365.0,42351.0,0.00033326]
[1644658516422,0.08805669,42354.0,42353.0,0.00196812]
[1644658517425,0.08805669,42354.0,42351.0,0.00033326]
[1644658517626,0.08805669,42354.0,42351.0,0.0008253]
[1644658517828,0.08745121,42354.0,42352.0,0.15837]
[1644658518024,0.08745121,42354.0,42353.0,0.0001]
[1644658518226,0.05510217,42354.0,42353.0,0.0001]
[1644658518624,0.05510217,42354.0,42353.0,0.158379]
[1644658518925,0.05510217,42354.0,42353.0,0.0001]
[1644658519124,0.05510217,42354.0,42352.0,0.00023326]
[1644658519332,0.05510217,42354.0,42351.0,0.0008253]
[1644658519726,0.05510217,42354.0,42351.0,0.00033326]
[1644658519976,0.05510217,42354.0,42353.0,0.00133925]
[1644658520881,0.05510217,42354.0,42350.0,0.26999204]
[1644658520882,0.33193798,42351.0,42350.0,0.26999204]
[1644658521078,0.33193798,42351.0,42350.0,0.2695]
[1644658521079,0.00137598,42351.0,42350.0,0.2695]
[1644658521379,0.58798125,42351.0,42350.0,0.2695]
[1644658521578,0.25741925,42351.0,42350.0,0.2695]
[1644658522178,0.00137598,42351.0,42350.0,0.2695]
[1644658522381,0.00137598,42351.0,42350.0,0.26993]
[1644658522776,0.33193798,42351.0,42350.0,0.26993]
[1644658522977,0.00137598,42351.0,42350.0,0.26993]
[1644658523180,0.33193798,42351.0,42350.0,0.26993]
[1644658523840,0.00137598,42351.0,42350.0,0.26993]
[1644658525137,0.00329724,42351.0,42350.0,0.26993]
[1644658525937,0.00329724,42351.0,42350.0,0.27003]
[1644658529372,0.24329724,42351.0,42350.0,0.27003]
[1644658530376,0.24137598,42351.0,42350.0,0.27003]
[1644658530775,0.24137598,42351.0,42350.0,0.49843409]
[1644658532830,0.24137598,42351.0,42350.0,0.65682909]
[1644658533030,0.24137598,42351.0,42350.0,0.65682809]
[1644658533433,0.24137598,42351.0,42350.0,0.49843409]
[1644658533629,0.24137598,42351.0,42350.0,0.65682809]
[1644658534230,0.24137598,42351.0,42350.0,0.49843409]
[1644658534431,0.24137598,42351.0,42350.0,0.27003]
[1644658535276,0.24327956,42351.0,42350.0,0.27003]
[1644658536676,0.24327956,42351.0,42350.0,0.00053]
[1644658536878,0.24327956,42351.0,42350.0,0.00043]
[1644658537077,0.24327956,42351.0,42350.0,0.00053]
[1644658537679,0.24327956,42351.0,42350.0,0.00043]
[1644658537879,0.24327956,42351.0,42350.0,0.00053]
[1644658539334,0.24327956,42351.0,42350.0,0.00043]
[1644658539537,0.24327956,42351.0,42350.0,0.00053]
[1644658542979,0.24327956,42351.0,42350.0,0.00043]
[1644658543176,0.24327956,42351.0,42350.0,0.00053]
[1644658543378,0.24327956,42351.0,42350.0,0.00043]
[1644658543776,0.24327956,42351.0,42350.0,0.00053]
[1644658544381,0.24327956,42351.0,42350.0,0.00043]
[1644658544783,0.24327956,42351.0,42350.0,0.00053]
[1644658544984,0.24317334,42351.0,42350.0,0.00053]
[1644658546439,0.2422917,42351.0,42350.0,0.158924]
[1644658546840,0.2422917,42351.0,42350.0,0.46098478]
[1644658547042,0.24193942,42351.0,42350.0,0.46098478]
[1644658549542,0.24193942,42351.0,42350.0,0.50828478]
[1644658550182,0.2410237,42351.0,42350.0,0.20772876]
[1644658550380,0.2410237,42351.0,42350.0,0.51035755]
[1644658550884,0.2410237,42351.0,42350.0,0.76057222]
[1644658552080,0.2410237,42351.0,42350.0,0.20762876]
[1644658554142,0.2410237,42351.0,42350.0,0.45784343]
[1644658554336,0.2410237,42351.0,42350.0,0.75019523]
[1644658555339,0.2410237,42351.0,42350.0,0.4985758]
[1644658556737,0.2410237,42351.0,42350.0,0.79883341]
[1644658556938,0.2410237,42351.0,42347.0,0.1991183]
[1644658557138,0.2410237,42351.0,42350.0,0.0473]
[1644658559885,0.2410237,42351.0,42350.0,0.04938573]
[1644658564132,0.2410237,42351.0,42350.0,0.05208573]
[1644658564332,0.2410237,42351.0,42350.0,0.05218573]
[1644658564981,0.2410237,42351.0,42350.0,0.35336801]
[1644658565181,0.2410237,42351.0,42350.0,0.05218573]